Cogmind - Beta 16.1 @@@ ROGUE MODE // 2026.04.08 @ 14:08:11 Player: SunShine214 Result: Destroyed by L-31 Rogue with Katana Performance ------------- Evolutions (1) 500 Regions Visited (3) 600 Robots Destroyed (74) 370 Value Destroyed (1606) 1606 Prototype IDs (4) 80 Alien Tech Used (0) 0 Bonus (-55) -55 TOTAL SCORE: 3101 Bonus ------- Follower Combat Kills 83 Friendly Fire -138 Cogmind --------- Core Integrity 0/400 Matter 242/300 Energy 279/280 System Corruption 0% Temperature Hot (260) Movement Hovering (116) Ox1 Location -9/Storage Parts ------- > --- POWER (1) -------- Heavy Ion Engine > --- PROPULSION (2) --- Airjet Airjet > --- UTILITY (4) ------ Medium Storage Unit Machine Analyzer Targeting Computer > --- WEAPON (2) ------- Advanced Beam Cannon Mini Grenade Launcher > --- INVENTORY (10) --- Heavy Ion Engine High-capacity Storage Unit Medium Battery (150) Hacking Suite Advanced Beam Cannon Mini Grenade Launcher Peak State ------------ > --- POWER ------------ Heavy Ion Engine > --- PROPULSION ------- Airjet Airjet > --- UTILITY ---------- Medium Storage Unit Machine Analyzer Targeting Computer Improved Propulsion Shielding > --- WEAPON ----------- Spread Laser Advanced Beam Cannon > --- INVENTORY -------- Heavy Ion Engine Airjet Airjet High-capacity Storage Unit Hardened Light Armor Plating Hacking Suite Spread Laser Shotgun Mini Grenade Launcher Mini Grenade Launcher [Rating: 24] Favorites ----------- Power Light Ion Engine Engine Light Ion Engine Propulsion Light Treads Treads Light Treads Leg Aluminum Leg Hover Unit Airjet Utility Targeting Computer Device Improved Terrain Scanner Storage Small Storage Unit Processor Targeting Computer Protection Improved Propulsion Shielding Weapon Medium Laser Energy Gun Medium Laser Energy Cannon Advanced Beam Cannon Ballistic Gun Heavy Assault Rifle Launcher Mini Grenade Launcher Special Weapon Mining Laser Build | -11 -10 -9 -9 ------- Run | Yrd Mat Mat Sto Slots Evolved 2 | . . 2 . Power . | . . . . Propulsion . | . . . . Utility 2 | . . 2 . Weapon . | . . . . Parts Attached 49 | 7 12 16 14 Power 5 | 1 1 2 1 Engine 5 | 1 1 2 1 Core . | . . . . Reactor . | . . . . Propulsion 11 | 2 1 6 2 Treads 5 | 2 1 2 . Leg 1 | . . 1 . Wheel . | . . . . Hover 5 | . . 3 2 Flight . | . . . . Utility 12 | 2 2 4 4 Device 2 | 1 . . 1 Storage 3 | 1 1 . 1 Processor 3 | . 1 1 1 Hackware . | . . . . Protection 4 | . . 3 1 Artifact . | . . . . Weapon 21 | 2 8 4 7 Energy Gun 10 | 2 5 2 1 Energy Cannon 2 | . . . 2 Ballistic Gun 4 | . 2 1 1 Ballistic Cannon . | . . . . Launcher 4 | . . 1 3 Special Weapon 1 | . 1 . . Impact Weapon . | . . . . Slashing Weapon . | . . . . Piercing Weapon . | . . . . Special Melee Weapon . | . . . . Unidentified Prototypes 4 | . . . 4 Parts Lost 23 | . 6 11 6 Power 4 | . 1 3 . Propulsion 7 | . 2 3 2 Utility 4 | . . 2 2 Weapon 8 | . 3 3 2 Highest Loss Streak 5 | . 4 5 5 To Critical Strikes . | . . . . Average Backups 7 | . 6 7 8 Power . | . . . . Propulsion 1 | . 1 2 1 Utility 3 | . 3 3 2 Weapon 2 | . 1 1 3 Tool/Special . | . . . . Unused Backups 12 | . 1 4 7 Power 1 | . . . 1 Propulsion 4 | . 1 2 1 Utility 3 | . . 1 2 Weapon 4 | . . 1 3 Tool/Special . | . . . . Average Slot Usage (%) 90 | . 93 82 92 Engine 9 | . 13 6 5 Treads 11 | . 21 9 . Hover 8 | . . 7 21 Storage 12 | . 14 11 11 Processor 17 | . 11 20 22 Protection 5 | . . 6 10 Energy Gun 20 | . 26 14 17 Launcher 1 | . . 3 1 Peak Build Rating 24 | 9 9 17 24 Average Rating 12 | 5 7 11 19 On Entrance 8 | . 9 7 17 Avg Prop Armor Cover (%) 6 | . . 6 . Naked Turns . | . . . . Heaviest Build 49 | 14 49 20 31 Greatest Support 40 | 40 40 40 16 Greatest Overweight (x) 6 | . 1 6 3 Average Overweight (x) . | . . . . Largest Inventory Capacity 20 | 8 20 8 10 Average Capacity 8 | 7 8 8 9 Most Carried 10 | 1 8 8 10 Average Carried 7 | . 6 7 8 Final Capacity 10 | 8 8 8 10 Final Carried 8 | 1 8 8 6 Class Distribution -------------------- 99% | Mutant Dominant Class ---------------- Mutant | -10/Materials Mutant | -9/Materials Mutant | -9/Storage Resources | -11 -10 -9 -9 ----------- Run | Yrd Mat Mat Sto Matter Collected 936 | 216 171 104 445 Remotely . | . . . . Salvage Created 2188 | 189 671 371 957 Parts 142 | 8 38 29 67 Haulers Intercepted 5 | . 1 . 4 Recyclers Shooed 1 | . . 1 . Parts Field Recycled . | . . . . Retrieved Matter . | . . . . Parts Self-Destructed . | . . . . Prevented . | . . . . Parts Restored . | . . . . Kills | -11 -10 -9 -9 ------- Run | Yrd Mat Mat Sto Combat Hostiles Destroyed 47 | . 18 15 14 Guns 32 | . 15 11 6 Cannons 3 | . . . 3 AOE 12 | . 3 4 5 Classes Destroyed 13 | 2 4 3 4 Worker 5 | . . 2 3 Builder 5 | . . 2 3 Tunneler 3 | 3 . . . Hauler 5 | . 1 . 4 Recycler 3 | 1 . . 2 Mechanic 2 | . . . 2 Operator 1 | . 1 . . Watcher 2 | . . . 2 Swarmer 14 | . 6 8 . Grunt 24 | . 12 2 10 Brawler 1 | . . . 1 Duelist 1 | . . . 1 Sentry 7 | . . 5 2 Thug 1 | . . . 1 Best Kill Streak 12 | 4 5 6 12 Combat Bots Only 6 | . 5 6 5 Max Kills in Single Turn 4 | 1 2 1 4 Gunslinging . | . . . . Exploded 2 | . 2 1 2 Melee . | . . . . Uniques/NPCs Destroyed . | . . . . Combat | -11 -10 -9 -9 -------- Run | Yrd Mat Mat Sto Hostile Shots Fired 280 | . 92 114 74 Missed 61 | . 27 21 13 Hits 219 | . 65 93 61 Melee 12 | . . . 12 Projectile 207 | . 65 93 49 Critical Strikes 5 | . . 2 3 Damage Taken 2913 | . 757 1128 1028 Core 563 | . 156 170 237 Absorbed by Shields . | . . . . Redirected to Shielding 118 | . . 25 93 Core Remaining (%) 68 | 100 37 . . Volleys Fired 166 | 9 51 54 52 Largest 2 | 2 2 2 2 Hottest 150 | 80 150 130 133 Shots Fired 307 | 18 101 97 91 Gun 261 | 18 98 84 61 Cannon 22 | . . . 22 Launcher 21 | . . 13 8 Special 3 | . 3 . . Kinetic 19 | . 2 17 . Thermal 220 | 9 61 67 83 Explosive 17 | . . 13 4 Electromagnetic 51 | 9 38 . 4 Robot Hit Streak 14 | 6 9 11 14 Robot Miss Streak 6 | 1 3 6 6 Penetration Max . | . . . . Secondary Targets 5 | . 3 2 . Max Gunslinging Chain 1 | . 1 1 . Shots Hit Robots 216 | 13 66 65 72 Core Hits 164 | 5 31 30 98 Critical Kills . | . . . . Critical Parts Destroyed . | . . . . Critical Strikes 5 | . 4 1 . Burn 3 | . 2 1 . Corrupt 2 | . 2 . . Melee Attacks . | . . . . Impact . | . . . . Slashing . | . . . . Piercing . | . . . . Sneak Attacks . | . . . . Combat Hostiles . | . . . . Follow-up Attacks . | . . . . Damage Inflicted 4740 | 169 987 1559 2025 Guns 2580 | 169 825 798 788 Cannons 328 | . . . 328 Explosions 1806 | . 138 761 907 Melee . | . . . . Ramming 2 | . . . 2 Kinetic 205 | . 8 197 . Thermal 2617 | 44 582 601 1390 Explosive 1126 | . . 761 365 Electromagnetic 790 | 125 397 . 268 Impact . | . . . . Slashing . | . . . . Piercing . | . . . . Highest Corruption 3 | . 3 . . Average Corruption 2 | . 2 . . Corruption Purged . | . . . . Corruption Blocked . | . . . . Effects 3 | . 3 . . Message Errors 1 | . 1 . . Data Loss (major) 1 | . 1 . . Misfires 1 | . 1 . . Overload Shots . | . . . . Overflow Damage 34 | . . 34 . Projectiles . | . . . . Explosions 34 | . . 34 . Melee . | . . . . Knockbacks . | . . . . Impact . | . . . . Kinetic . | . . . . Secondary . | . . . . Self-Inflicted Damage 279 | . 133 109 37 Shots 8 | . 3 4 1 Rammed 1 | . . . 1 Targets Rammed 1 | . . . 1 Kicked . | . . . . Crushed . | . . . . Highest Temperature 417 | 126 318 333 417 Average Temperature 121 | 55 105 108 150 Received Heat Transfer 834 | . 207 321 306 Effects 2 | . . . 2 Shutdowns 1 | . . . 1 Matter Decay 1 | . . . 1 Siege Activations . | . . . . Martial Activations . | . . . . Shielding Activations . | . . . . Robots Disrupted . | . . . . Combat Hostiles . | . . . . Robots Corrupted . | . . . . Combat Hostiles . | . . . . Parts Fried 1 | 1 . . . Impact Corruptions . | . . . . Robots Melted . | . . . . Combat Hostiles . | . . . . Parts Melted 5 | . 1 3 1 Heat Transferred 5555 | 100 1620 1718 2117 Parts Sabotaged . | . . . . Parts Stolen . | . . . . Parts Stripped . | . . . . Power Chain Reactions 7 | . 2 . 5 Alert | -11 -10 -9 -9 ------- Run | Yrd Mat Mat Sto Maximum Alert Level 1 | . 1 . 1 Low Security (%) 98 | 100 98 100 95 Level 1 1 | . 1 . 4 Level 2 . | . . . . Level 3 . | . . . . Level 4 . | . . . . Level 5 . | . . . . High Security . | . . . . Max Security . | . . . . Peak Influence 251 | 10 207 193 251 Initial 66 | . . . 66 Average 66 | 2 67 103 43 Influence Increases 1656 | 20 539 528 569 Destroy 0b10 Robot/C 1000 | . 360 300 340 Destroy 0b10 Robot/NC 130 | 20 10 20 80 Destroy Leader 214 | . 72 70 72 Allied During Kill 7 | . . . 7 Successful Hack 31 | . 12 8 11 Disable Machine 90 | . 45 15 30 Destroy Structure 109 | . 10 70 29 Lose Combat Pursuer 75 | . 30 45 . Influence Decreases 1427 | 20 539 369 499 Entered New Map 93 | . . . 93 Time Decay 964 | 20 337 268 339 Lost Part 208 | . 60 101 47 Lost Ally 20 | . . . 20 Purge Threat 142 | . 142 . . Squads Dispatched 7 | . 4 1 2 Investigation 3 | . 3 . . Extermination . | . . . . Reinforcement 2 | . 1 1 . Assault 2 | . . . 2 Garrison . | . . . . Intercept . | . . . . Searches Triggered . | . . . . Construction Impeded . | . . . . Haulers Reinforced . | . . . . Active Scanning Responses . | . . . . Cargo Convoy Interrupts . | . . . . Stealth | -11 -10 -9 -9 --------- Run | Yrd Mat Mat Sto Distress Signals 4 | . 1 3 . Communications Jammed . | . . . . Distress Signals . | . . . . Times Spotted 84 | . 30 31 23 Peak Tracking Total 6 | . 4 5 6 Tactical Retreats 4 | . 2 2 . Traps | -11 -10 -9 -9 ------- Run | Yrd Mat Mat Sto Traps Triggered 6 | . 5 . 1 Indirectly . | . . . . Trap Hack Attempts . | . . . . Triggered . | . . . . Disarmed . | . . . . Reprogrammed . | . . . . Reused . | . . . . Traps Extracted . | . . . . Installed . | . . . . Triggered . | . . . . Machines | -11 -10 -9 -9 ---------- Run | Yrd Mat Mat Sto Machines Disabled 6 | . 3 1 2 Max in Single Turn 2 | . 2 1 1 Machines Repaired . | . . . . Machines Dismantled . | . . . . Machines Sabotaged . | . . . . Overloaded Fab Kills . | . . . . Hacking | -11 -10 -9 -9 --------- Run | Yrd Mat Mat Sto Machines Accessed 16 | . 5 5 6 Terminals 15 | . 4 5 6 Fabricators . | . . . . Repair Stations 1 | . 1 . . Recycling Units . | . . . . Scanalyzers . | . . . . Garrison Access . | . . . . Total Hacks 29 | . 9 9 11 Successful 8 | . 3 2 3 Failed 21 | . 6 7 8 Catastrophic 6 | . 1 3 2 Database Lockouts . | . . . . Manual 10 | . 1 5 4 Terminals 27 | . 7 9 11 Fabricators . | . . . . Repair Stations 2 | . 2 . . Recycling Units . | . . . . Scanalyzers . | . . . . Garrison Access . | . . . . Terminal Hacks 8 | . 3 2 3 Open Door 3 | . . . 3 Branch Access Points 1 | . . 1 . Alert Level 1 | . . 1 . Unreport Threat 1 | . 1 . . Registered Components 1 | . 1 . . Zone Layout 1 | . 1 . . Fabricator Hacks . | . . . . Repair Station Hacks . | . . . . Recycling Unit Hacks . | . . . . Scanalyzer . | . . . . Garrison Access Hacks . | . . . . Unauthorized Hacks . | . . . . Terminals . | . . . . Fabricators . | . . . . Repair Stations . | . . . . Recycling Units . | . . . . Scanalyzers . | . . . . Garrison Access . | . . . . Data Cores Recovered . | . . . . Used . | . . . . Hacking Detections 13 | . 4 5 4 Full Trace Events 1 | . 1 . . Feedback Events . | . . . . Feedback Blocked . | . . . . Robot Schematics Acquired . | . . . . Robots Built . | . . . . Authchips . | . . . . Time . | . . . . Total Robot Build Rating . | . . . . Part Schematics Acquired . | . . . . Parts Built . | . . . . Authchips . | . . . . Time . | . . . . Total Part Build Rating . | . . . . Part Studies Acquired . | . . . . Parts Repaired . | . . . . Time . | . . . . Parts Recycled . | . . . . Recycled Matter . | . . . . Retrieved Matter . | . . . . Retrieved Components . | . . . . Parts Scanalyzed . | . . . . Part Schematics Acquired . | . . . . Parts Damaged . | . . . . Bothacking | -11 -10 -9 -9 ------------ Run | Yrd Mat Mat Sto Used RIF Installer . | . . . . Robots Hacked . | . . . . Non-combat . | . . . . Combat . | . . . . Robot Hacks Applied . | . . . . Relay Couplers Released . | . . . . Fabnet Peak Effective % . | . . . . Robots Rewired . | . . . . Allies Hacked . | . . . . Hacks Repelled . | . . . . Allies | -11 -10 -9 -9 -------- Run | Yrd Mat Mat Sto Total Allies 2 | . . . 2 Largest Group 2 | . . . 2 Highest-Rated Group 62 | . . . 62 Highest-Rated Ally 31 | . . . 31 Total Orders 1 | . . . 1 EXPLORE 1 | . . . 1 Ally Attacks 8 | . . . 8 Total Damage 150 | . . . 150 Kills 3 | . . . 3 Allies Corrupted . | . . . . Allies Melted . | . . . . Intel | -11 -10 -9 -9 ------- Run | Yrd Mat Mat Sto Active Infowar (turns) 525 | 21 180 . 324 Terrain 201 | 21 180 . . Machine Analysis 324 | . . . 324 Robot Analysis Total . | . . . . Derelict Logs Recovered . | . . . . Drone Launches 1 | . . . 1 Drone Recoveries 1 | . . . 1 Exploration | -11 -10 -9 -9 ------------- Run | Yrd Mat Mat Sto Turns Passed 2986 | 90 1249 716 931 Spaces Moved 1433 | 35 530 340 528 Core 4 | 3 . 1 . Treads 757 | 32 530 195 . Legs 15 | . . 15 . Wheels . | . . . . Hover 657 | . . 129 528 Flight . | . . . . Fastest Speed 50 | 50 160 56 56 Average Speed 130 | 150 160 122 104 Slowest Speed 350 | 160 240 350 240 Overloaded Moves . | . . . . Propulsion Burnouts . | . . . . Robots Hopped . | . . . . Potential Cave-ins . | . . . . Cave-ins Triggered . | . . . . Exploration Rate (%) 43 | 4 82 43 44 Regions Visited 3 Branch Regions 1 Pre-discovered Areas . | . . . . Known Exits Taken 1 | . . 1 . Unknown Exits Taken 2 | 1 1 . . Scrap Searched . | . . . . Spaces Dug . | . . . . Terrain Destroyed 106 | . 7 69 30 Melee . | . . . . Projectile 2 | . 2 . . AOE 104 | . 5 69 30 Terrain Rammed . | . . . . Walls Destroyed . | . . . . Machines Disabled . | . . . . Actions | -11 -10 -9 -9 --------- Run | Yrd Mat Mat Sto Total 2224 | 51 820 539 814 Wait 526 | . 214 116 196 Move 1430 | 34 529 339 528 Hop . | . . . . Pick Up 29 | 1 11 8 9 Fast Attach 24 | 7 2 11 4 Attach 11 | . 3 2 6 Detach 1 | . . . 1 Swap 22 | . 8 3 11 Drop 14 | . 2 6 6 Fire 166 | 9 51 54 52 Melee . | . . . . Ram 1 | . . . 1 Kick . | . . . . Crush . | . . . . Escape Stasis . | . . . . Rewire . | . . . . Trap . | . . . . Miscellaneous . | . . . . Route ------- -11/Scrapyard -10/Materials (discovered 5 exits: *Mat x2 / [*Min x2] / [*Sub]) -9/Materials (discovered 5 exits: [*Mat] / *Min x2 / *Sto x2) -9/Storage History --------- Turn | Location | Event 4 | -11/Scrapyard | Discovered new exit (range 15) 91 | -11/Scrapyard | Entered Materials 275 | -10/Materials | Discovered new exit (range 16) 311 | -10/Materials | Build established: Mutant 661 | -10/Materials | Discovered new exit (range 8) 720 | -10/Materials | Discovered new exit (range 11) 832 | -10/Materials | Lost 4 parts (2n2w) 853 | -10/Materials | Core integrity fell below 50% 926 | -10/Materials | Discovered new exit (range 3) 1030 | -10/Materials | Discovered new exit (range 6) 1340 | -10/Materials | Entered another Materials area 1340 | -9/Materials | Evolved 2 slots: Utility x2 1568 | -9/Materials | Identified exit to Mines 1568 | -9/Materials | Identified exit to Storage 1677 | -9/Materials | Lost 5 parts (1p2n1u1w) 1745 | -9/Materials | Lost 3 parts (1u2w) 1891 | -9/Materials | Discovered new exit (range 11) 2056 | -9/Materials | Entered Storage 2264 | -9/Storage | Core integrity fell below 50% 2850 | -9/Storage | Lost 5 parts (2n1u2w) 2886 | -9/Storage | Met a pair of Derelict thieves 2942 | -9/Storage | Core integrity fell below 20% 2987 | -9/Storage | Destroyed by L-31 Rogue with Katana Last Messages --------------- 02934_ K-01 Serf destroyed. 02935_ K-01 Serf collects debris. 02937_ Chain reaction triggered in Corrupted Lgt. Ion Engine. 02937_ G-47 Trooper destroyed. 02941_ EMP Blaster severed. 02942_ G-47 Trooper destroyed. 02942_ U-05 Engineer destroyed. 02942_ K-01 Serf destroyed. 02943_ K-01 Serf collects debris. 02945_ B-36 Bruiser destroyed. 02945_ K-01 Serf destroyed. 02945_ G-34 Mercenary destroyed. 02948_ The unstable cave ceiling collapses. 02948_ Terrain Scanner crushed. 02971_ Acquired 13 matter. 02977_ Hrd. Light Armor Plating destroyed. 02981_ R-06 Scavenger collects Corrupted Aluminum Leg. 02984_ R-06 Scavenger collects Wheel. Map ----- +----------------------------------------------------+ | ??????????????????# #??????????????? | | ??????????????????# #??????????????? | | ??????????????????+ #??????????????? | | ??????????????????# #??????????????? | | ??????????????????# +??????????????? | | ??????????????????# #??????????????? | | #?????????????????# #??????????????? | | #?????????????????# #??????????????? | | #?????????????????# ###????????????? | | #####???########### #T####?????????? | | #####*!= / "] #?????????? | | "" + %=% % #[[] #?????????? | | "" ######+######## # "]]#?#####???? | | ""[ ###### #?????# ######?#"""#???? | | [%[=##*** #?????# #??????#"Y"#???? | | [[[ ##* *= #?????# ########" "####? | | = ######T##????## ## #? | | #????###?????# #= *%! ;#? | | #####????????????# # " a [ ##? | | ??????????###????# T # = ;#? | | ?????????## ###### ]!*= = [! ;#? | | ????????########### ##!=%==] = ;#? | | ???????### # # !== !%[[ ##? | | ???????# # % %+ # %= [ ###?? | | ???????# # *"" # % % #???? | | ???????### %[" # @l r%##???? | | ????????##* ]"[[" #####+###### ##???? | | ????????##%!]""%" #?# ##??# #????? | | ?????????#!"%"""" #?# T#??#"#????? | | ?????????# "" #?##" "###?#%#????? | | ?????????#=[=[ #?# #?#"#????? | | ?????????##########?# ]]#?# #????? | | ????????????????????#]] ] #?# #????? | | ????????????????????#] ]#?# ?????? | | ????????????????????########?? ?????? | | ?????????????????????????????? ?????? | | ?????????????????????????????? ?????? | | ?????????????????????????????? ?????? | | ????????????????????????????????????? | | ????????????????????????????????????? | | ????????????????????????????????????? | | ????????????????????????????????????? | | ??????????????????????????T?????????? | | ????????????????????????????????????? | | ????????????????????????????????????? | | ????????????????????????????????????? | | ????????????????????????????????????? | | ????????????????????????????????????? | | ????????????????????????????????????? | | ????????????????????????????????????? | +----------------------------------------------------+ Best States ------------- Heat Dissipation 28 Energy Generation 14 Energy Capacity 280 Matter Stores 300 Matter Capacity 300 Sight Range 16 Terrain Scan Range 16 Terrain Scan Density 10 Armor Coverage 150 Propulsion Shielding 66 Evasion (%) 53 Targeting Accuracy 10 Recoil Reduction 2 Item Schematics ----------------- None Robot Schematics ------------------ None Fabricated ------------ Nothing Repaired ---------- Nothing Studied --------- None Alien Tech Used ----------------- None Achievements -------------- None Challenges ------------ None Game ------ Seed ImpactTeslaHoverbase Manual? 0 Play Time 00:20:36 Cumulative 124.5 hours Start 2026.04.08 @ 11:22:47 End 2026.04.08 @ 14:08:11 Sessions 1 Manual Loads 0 Difficulty Rogue Special Mode None Game No. 186 Rogue 186 Adventurer 0 Explorer 0 Win Type - Total 1 Types 1/0/0/0/0/0/0/0/0/0 Lore% 50 Gallery% 53 Achievement% 40 Wizard Run 0 Options --------- Layout 1 ASCII 0 Keyboard 1 Movement Arrows Keybinds 0 Fullscreen 1 Font 24/Smallcaps Map View 50x35 Zoom Use 0% Tactical HUD 1 Map Filters NONE Filters NONE Steam 1 RUN: dd498ee9-30ed-4018-acb7-00e5963b53b2